bitfinex/quotes_SOLUSD_20250416
["timestamp","ask_amount","ask_price","bid_price","bid_amount"]
[1744837227155,99.66217466,131.88,131.84,24.20549594]
[1744837227363,99.66217466,131.88,131.83,31.79063107]
[1744837227565,24.20549594,131.87,131.83,31.79063107]
[1744837227964,99.66217466,131.88,131.83,31.79063107]
[1744837228565,75.45667872,131.88,131.84,24.20549594]
[1744837228988,75.45667872,131.88,131.84,31.79008771]
[1744837229477,75.45667872,131.88,131.85,24.20549594]
[1744837229871,75.45667872,131.88,131.84,31.79008771]
[1744837231277,75.45667872,131.88,131.85,24.20549594]
[1744837231480,75.45667872,131.88,131.86,24.20549594]
[1744837231680,26.0,131.9,131.87,24.20549594]
[1744837231681,75.45667872,131.9,131.87,24.20549594]
[1744837231860,0.03,131.91,131.88,24.20549594]
[1744837232958,0.03,131.91,131.9,24.20549594]
[1744837233371,0.03,131.91,131.9,31.78699707]
[1744837233766,1e-08,131.91,131.9,50.43664593]
[1744837233984,6.5317,131.97,131.91,18.64964886]
[1744837234181,24.20549594,131.95,131.9,7.58150113]
[1744837234403,24.20549594,131.95,131.88,6.2872]
[1744837234404,24.20549594,131.93,131.88,33.58265089]
[1744837234678,24.20549594,131.93,131.88,57.78814683]
[1744837234979,99.66217466,131.96,131.91,24.20549594]
[1744837235277,24.20549594,131.95,131.9,24.20549594]
[1744837235481,24.20549594,131.95,131.9,31.78642323]
[1744837235660,83.0347925,131.96,131.9,31.78642323]
[1744837235866,24.20549594,131.93,131.89,7.58168793]
[1744837236254,24.48981908,131.94,131.89,31.78718387]
[1744837236454,24.48981908,131.94,131.9,24.20549594]
[1744837236770,24.34765751,131.95,131.9,24.20549594]
[1744837236980,55.57269808,131.96,131.92,24.20549594]
[1744837237170,69.9631337,131.96,131.92,38.59593156]
[1744837237679,69.9631337,131.96,131.93,38.59593156]
[1744837237680,31.36720214,131.96,131.93,38.59593156]
[1744837238185,69.9631337,131.96,131.92,46.17612369]
[1744837238369,38.59593156,131.95,131.91,46.1767627]
[1744837238887,69.9631337,131.96,131.92,38.59593156]
[1744837239482,31.36720214,131.96,131.92,38.59593156]
[1744837239794,31.36720214,131.96,131.92,46.17570905]
[1744837240186,31.36720214,131.96,131.93,38.59593156]
[1744837240687,38.59593156,131.94,131.88,38.59593156]
[1744837240878,38.59593156,131.93,131.88,38.59593156]
[1744837241883,38.59593156,131.93,131.89,7.58207597]
[1744837242290,38.59593156,131.94,131.89,46.17800753]
[1744837244583,121.39593156,131.95,131.9,38.59593156]
[1744837245685,82.8,131.95,131.91,38.59593156]
[1744837245866,69.9631337,131.96,131.91,38.59593156]
[1744837246185,69.9631337,131.96,131.92,7.58035172]
[1744837246870,38.59593156,131.95,131.92,7.58035172]
[1744837248691,69.9631337,131.96,131.92,7.58035172]
[1744837248896,77.54121666,131.96,131.92,7.58035172]
[1744837249099,77.54121666,131.96,131.91,46.17659902]
[1744837249282,38.59593156,131.95,131.91,46.17659902]
[1744837250971,77.54121666,131.96,131.91,46.17659902]
[1744837252092,69.9631337,131.96,131.92,38.59593156]
[1744837254083,77.54133039,131.96,131.92,38.59593156]
[1744837254473,77.54133039,131.96,131.92,46.1762435]
[1744837255002,69.9631337,131.96,131.92,46.1762435]
[1744837255501,31.36720214,131.96,131.93,38.59593156]
[1744837255880,31.36720214,131.96,131.95,38.59593156]
[1744837256084,31.36720214,131.96,131.95,84.77049138]
[1744837257399,0.063,132.0,131.96,26.0]
[1744837257574,0.063,132.0,131.99,38.59593156]
[1744837258292,0.063,132.0,131.99,46.1722631]
[1744837258874,0.063,132.0,131.99,38.59593156]
[1744837259093,0.063,132.0,131.99,46.1722631]
[1744837259405,0.063,132.0,131.99,31.66998305]
[1744837259574,24.15665151,132.0,131.93,18.94820015]
[1744837259779,24.09365151,131.99,131.94,24.09365151]
[1744837259979,24.15665151,132.0,131.95,24.09365151]
[1744837260305,24.15665151,132.0,131.95,31.67176591]
[1744837260509,24.09365151,131.99,131.95,24.09365151]
[1744837260689,24.09365151,131.99,131.94,24.09365151]
[1744837260891,24.09365151,131.99,131.95,24.09365151]
[1744837261078,24.09365151,131.99,131.94,24.09365151]
[1744837261281,38.57938707,131.99,131.94,38.57938707]
[1744837261680,38.72154864,131.98,131.93,7.57952011]
[1744837261880,38.57938707,131.97,131.93,7.57952011]
[1744837262308,0.14216157,131.98,131.93,7.57952011]
[1744837262602,0.14216157,131.98,131.93,46.15890718]
[1744837262603,38.72154864,131.98,131.93,46.15890718]
[1744837263110,46.29865579,131.98,131.93,46.15890718]
[1744837263801,38.72154864,131.98,131.93,46.15890718]
[1744837263985,26.063,132.0,131.96,38.57938707]
[1744837264796,38.64238707,132.0,131.96,38.57938707]
[1744837266081,37.46953087,132.0,131.96,38.57938707]
[1744837266283,37.46953087,132.0,131.96,46.15735799]
[1744837266495,45.04531148,132.0,131.96,7.57797092]
[1744837266684,45.04531148,132.0,131.95,46.15785075]
[1744837267398,38.57938707,131.96,131.89,7.58207597]
[1744837267614,38.57938707,131.92,131.89,7.58207597]
[1744837268707,82.8,131.96,131.9,38.57938707]
[1744837269006,121.37938707,131.96,131.91,38.57938707]
[1744837269194,38.57938707,131.94,131.89,46.16146304]
[1744837269593,82.94216157,131.96,131.89,7.58207597]
[1744837269792,82.8,131.96,131.92,38.57938707]
[1744837270089,38.57938707,131.93,131.89,7.58207597]
[1744837270606,38.57938707,131.92,131.89,7.58207597]
[1744837271506,38.57938707,131.94,131.9,38.57938707]
[1744837271896,38.57938707,131.94,131.89,7.58207597]
[1744837272098,38.57938707,131.94,131.89,46.16146304]
[1744837272418,38.57938707,131.94,131.9,38.57938707]
[1744837272590,38.57938707,131.95,131.9,38.57938707]
[1744837273515,38.57938707,131.95,131.91,7.58092638]
[1744837274115,38.57938707,131.95,131.91,46.16031345]
[1744837274315,82.8,131.96,131.92,38.57938707]
[1744837274502,26.0,131.97,131.93,38.57938707]
[1744837274832,63.63548707,131.98,131.94,38.57938707]
[1744837275017,90.37599379,132.0,131.96,38.57938707]
[1744837275018,121.37938707,132.0,131.96,38.57938707]
[1744837275218,6.4767,132.01,131.99,38.57938707]
[1744837275387,1.6929,132.02,132.0,38.57938707]
[1744837275585,1.6929,132.02,132.01,46.15457076]
[1744837275586,0.03,132.02,132.01,46.15457076]
[1744837276891,0.03,132.02,132.0,38.57938707]
[1744837277413,0.03,132.02,132.01,38.57938707]
[1744837277702,0.03,132.02,132.01,46.15457076]
[1744837279314,0.03,132.02,132.01,38.57938707]
[1744837280601,0.03,132.02,132.01,121.808423]
[1744837280910,0.03,132.02,132.01,83.22903593]
[1744837282120,0.03,132.02,132.01,90.80421962]
[1744837282296,0.03,132.02,132.01,52.22483255]
[1744837282496,0.03,132.02,132.01,90.80421962]
[1744837284147,0.03,132.02,131.98,7.57690559]
[1744837284298,38.60938707,132.02,131.96,17.14]
[1744837284613,38.60938707,132.02,131.97,38.57938707]
[1744837284830,0.03,132.02,132.0,38.57938707]
[1744837285195,0.03,132.02,132.01,57.22903593]
[1744837285599,0.03,132.02,132.01,74.36903593]
[1744837287609,0.03,132.02,132.01,81.94421962]
[1744837289523,0.03,132.02,132.01,63.29457076]
[1744837289722,0.03,132.02,132.01,50.71518369]
[1744837289928,0.03,132.02,132.01,89.29457076]
[1744837291610,0.03,132.02,132.0,46.15492279]
[1744837292727,0.03,132.02,132.01,46.15457076]
[1744837293101,0.03,132.02,132.01,31.6565628]
[1744837294927,0.03,132.02,132.0,31.65692559]
[1744837296636,0.03,132.02,132.01,24.08137911]
[1744837296805,0.03,132.02,132.01,31.6565628]
[1744837298219,0.03,132.02,132.0,7.57575757]
[1744837298534,0.03,132.02,132.0,31.65713668]
[1744837298712,0.03,132.02,132.01,24.08137911]
[1744837300614,0.03,132.02,132.01,31.6565628]
[1744837300917,0.03,132.02,132.01,50.30621166]
[1744837302140,0.03,132.02,132.01,76.30621166]
[1744837307618,0.03,132.02,132.01,57.6565628]
[1744837311347,24.11137911,132.02,131.97,24.08137911]
[1744837311545,24.08137911,132.01,131.97,24.08137911]
[1744837312046,0.03,132.02,131.95,6.00086248]
[1744837312047,0.03,132.02,131.99,24.08137911]
[1744837312453,0.03,132.02,131.98,24.08137911]
[1744837312950,0.03,132.02,131.98,31.65795896]
[1744837313525,24.11137911,132.02,131.98,31.65795896]
[1744837313852,24.08137911,132.01,131.97,7.57733253]
[1744837314030,24.08137911,132.0,131.94,17.183]
[1744837314231,24.08137911,131.98,131.94,31.72311692]
[1744837314939,24.08137911,131.96,131.94,0.063]
[1744837315238,6.0,131.97,131.95,24.08137911]
[1744837317135,6.3654,132.0,131.96,24.08137911]
[1744837317323,6.3654,132.0,131.97,24.08137911]
[1744837317926,6.3654,132.0,131.96,24.08137911]
[1744837318541,6.3654,132.0,131.96,31.65921924]
[1744837319438,6.3654,132.0,131.97,24.08137911]
[1744837319644,6.3654,132.0,131.96,31.65921924]
[1744837320554,6.3654,132.0,131.98,24.08137911]
[1744837320746,6.3654,132.0,131.97,24.08137911]
[1744837321656,6.3654,132.0,131.96,24.08137911]
[1744837321861,30.44677911,132.0,131.96,24.08137911]
[1744837322035,6.3654,132.0,131.96,24.08137911]
[1744837322451,24.22354068,131.99,131.95,24.08137911]
[1744837322654,24.08137911,131.97,131.94,0.063]
[1744837322963,32.29740225,131.95,131.94,0.063]
[1744837323164,56.52094293,131.95,131.94,0.063]
[1744837323461,49.55956382,131.95,131.94,0.063]
[1744837323757,49.55956382,131.95,131.9,7.58145294]
[1744837323758,18.79181043,131.94,131.89,0.063]
[1744837324062,32.55886382,131.9,131.89,0.063]
[1744837324265,83.22648471,131.89,131.88,0.063]
[1744837324446,26.42648471,131.86,131.85,0.063]
[1744837324635,50.50786382,131.86,131.85,0.063]
[1744837324844,58.09166482,131.86,131.85,0.063]
[1744837325231,82.8,131.88,131.85,0.063]
[1744837325432,24.22354068,131.86,131.85,0.063]
[1744837325640,50.50786382,131.86,131.85,0.063]
[1744837326763,58.09166482,131.86,131.85,0.063]
[1744837327134,72.67577974,131.86,131.85,0.063]
[1744837327372,65.09197874,131.86,131.85,0.063]
[1744837327663,72.67577974,131.86,131.85,0.063]
[1744837327833,91.3254286,131.86,131.85,0.063]
[1744837328043,20.60253357,131.85,131.81,0.063]
[1744837328366,38.94981717,131.82,131.81,0.063]
[1744837328732,38.66549403,131.82,131.81,0.063]
[1744837329237,38.8076556,131.82,131.81,0.063]
[1744837330257,38.66549403,131.82,131.81,0.063]
[1744837330472,1.5227,131.88,131.81,77.39398806]
[1744837330639,1.5227,131.88,131.86,46.2489874]
[1744837330836,6.4308,131.89,131.87,38.66549403]
[1744837331141,40.18819403,131.92,131.87,38.66549403]
[1744837331662,38.66549403,131.9,131.86,64.66549403]
[1744837331829,38.66549403,131.89,131.84,38.66549403]
[1744837332463,0.14216157,131.88,131.84,38.66549403]
[1744837332641,38.66549403,131.85,131.81,26.063]
[1744837332838,38.66549403,131.82,131.81,0.063]
[1744837333551,38.66549403,131.83,131.81,0.063]
[1744837333758,17.14,131.85,131.82,38.66549403]
[1744837333955,71.0860556,131.86,131.82,38.66549403]
[1744837334635,38.66549403,131.85,131.81,46.31495936]
[1744837334834,38.66549403,131.84,131.81,0.063]
[1744837335038,40.00440693,131.86,131.81,0.063]
[1744837335039,38.66549403,131.82,131.81,0.063]
[1744837335651,96.54577277,131.82,131.81,0.063]
[1744837335856,121.57692163,131.82,131.81,0.063]
[1744837336163,82.9114276,131.82,131.81,0.063]
[1744837336767,129.16302389,131.82,131.81,0.063]
[1744837338169,96.40712163,131.81,131.79,0.063]
[1744837338460,45.07613357,131.77,131.71,0.063]
[1744837338662,114.85210839,131.77,131.71,0.063]
[1744837339246,116.50040839,131.77,131.71,0.063]
[1744837339667,0.14216157,131.72,131.71,0.063]
[1744837339968,17.14,131.72,131.71,0.063]
[1744837341440,55.9476556,131.72,131.71,0.063]
[1744837341666,139.03197874,131.72,131.71,0.063]
[1744837342867,138.7476556,131.72,131.71,0.063]
[1744837343371,146.33951712,131.72,131.71,0.063]
[1744837343677,82.47348912,131.72,131.71,0.063]
[1744837343846,88.53568912,131.72,131.71,0.063]
[1744837344371,0.42648471,131.71,131.66,0.063]
[1744837344670,38.66549403,131.67,131.66,0.063]
[1744837345469,0.14216157,131.68,131.66,0.063]
[1744837345667,38.66549403,131.68,131.66,0.063]
[1744837345865,0.14216157,131.69,131.66,0.063]
[1744837346170,38.8076556,131.69,131.66,0.063]
[1744837346368,38.66549403,131.71,131.66,38.72849403]
[1744837346550,38.66549403,131.69,131.66,0.063]
[1744837346750,7.59252804,131.71,131.66,0.063]
[1744837346751,38.66549403,131.68,131.66,0.063]
[1744837347151,38.66549403,131.69,131.66,0.063]
[1744837351467,90.53522698,131.7,131.66,0.063]
[1744837351468,121.6076556,131.7,131.66,0.063]
[1744837351770,121.6076556,131.7,131.66,38.72849403]
[1744837351961,38.66549403,131.69,131.66,0.063]
[1744837352266,38.66549403,131.68,131.66,0.063]
[1744837354553,90.53528681,131.7,131.66,0.063]
[1744837354753,38.66549403,131.68,131.66,0.063]
[1744837356274,90.53528681,131.7,131.66,0.063]
[1744837356477,38.66549403,131.69,131.66,0.063]
[1744837357071,38.66549403,131.68,131.66,0.063]
[1744837357660,82.94216157,131.7,131.66,38.72849403]
[1744837357979,121.6076556,131.7,131.66,0.063]
[1744837358775,38.66549403,131.67,131.66,0.063]
[1744837359360,38.8076556,131.67,131.66,0.063]
[1744837361780,63.56240003,131.67,131.66,0.063]
[1744837361985,203.96186606,131.67,131.66,0.063]
[1744837366573,165.29637203,131.67,131.66,0.063]
[1744837367186,150.86891385,131.67,131.66,0.063]
[1744837367485,82.94216157,131.67,131.66,0.063]
[1744837367784,24.23803585,131.67,131.66,0.063]
[1744837371496,50.90891385,131.67,131.66,0.063]
[1744837372482,75.1469497,131.67,131.66,0.063]
[1744837373465,157.9469497,131.67,131.66,0.063]
[1744837374473,34.31828471,131.66,131.65,0.03]
[1744837374678,58.55632056,131.66,131.65,0.03]
[1744837374996,0.14216157,131.63,131.6,0.03]
[1744837375179,24.38019742,131.61,131.6,0.03]
[1744837377011,41.52019742,131.63,131.6,0.03]
[1744837377305,17.14,131.63,131.6,0.03]
[1744837377474,41.37803585,131.63,131.6,0.03]
[1744837377796,41.37803585,131.63,131.6,7.62878419]
[1744837378496,24.23803585,131.62,131.6,0.03]
[1744837379073,24.23803585,131.61,131.6,0.03]
[1744837379927,24.38019742,131.61,131.6,0.03]
[1744837380390,24.66452056,131.61,131.6,0.03]
[1744837380798,50.91237624,131.61,131.6,0.03]
[1744837381577,101.15041209,131.61,131.6,0.03]
[1744837381899,76.91237624,131.61,131.6,0.03]
[1744837382279,101.15041209,131.61,131.6,0.03]
[1744837382776,76.91237624,131.61,131.6,0.03]
[1744837382993,26.0,131.59,131.58,0.063]
[1744837383185,69.31416942,131.59,131.58,0.063]
[1744837383895,86.47416942,131.59,131.58,0.063]
[1744837384294,94.07353107,131.59,131.58,0.063]
[1744837385685,93.9313695,131.59,131.58,0.063]
[1744837386093,94.07353107,131.59,131.58,0.063]
[1744837386298,93.9313695,131.59,131.58,0.063]
[1744837386504,94.07353107,131.59,131.58,0.063]
[1744837391114,76.91353107,131.59,131.58,0.063]
[1744837391316,24.23803585,131.61,131.58,0.063]
[1744837391686,24.23803585,131.6,131.58,0.063]
[1744837396519,82.863,131.67,131.61,28.13702387]
[1744837396693,107.10103585,131.67,131.61,28.13702387]
[1744837397014,107.10103585,131.67,131.62,24.23803585]
[1744837397795,0.063,131.67,131.64,24.23803585]
[1744837397990,0.063,131.67,131.63,24.23803585]
[1744837398197,0.063,131.67,131.64,24.23803585]
[1744837398393,0.063,131.67,131.66,31.83335713]
[1744837398592,0.063,131.67,131.66,7.59532128]
[1744837399791,0.063,131.67,131.66,31.83335713]
[1744837402122,82.8,131.72,131.66,50.82166033]
[1744837402300,24.23803585,131.73,131.69,24.23803585]
[1744837402620,24.23803585,131.73,131.68,24.23803585]
[1744837402822,107.18019742,131.74,131.69,24.23803585]
[1744837403113,24.44319742,131.73,131.68,24.23803585]
[1744837403897,24.44319742,131.73,131.69,7.593591]
[1744837405519,23.3613744,131.73,131.69,7.593591]
[1744837405718,107.03803585,131.74,131.7,24.23803585]
[1744837405915,107.03803585,131.74,131.71,7.59243793]
[1744837407721,24.23803585,131.73,131.68,24.23803585]
[1744837407899,24.23803585,131.73,131.69,24.23803585]
[1744837408096,107.03803585,131.74,131.68,26.57958686]
[1744837408302,17.16,131.75,131.72,24.23803585]
[1744837408612,0.063,131.77,131.74,24.23803585]
[1744837408813,0.063,131.77,131.75,24.23803585]
[1744837409217,0.063,131.77,131.76,31.82759261]
[1744837409414,0.063,131.77,131.76,7.58955676]
[1744837409617,0.063,131.77,131.75,7.59000377]
[1744837410214,0.063,131.77,131.74,7.59052576]
[1744837410402,0.063,131.77,131.74,31.82856161]
[1744837411523,0.063,131.77,131.76,24.23803585]
[1744837411827,0.063,131.77,131.76,50.23803585]
[1744837412624,1e-08,131.81,131.8,25.02984886]
[1744837412923,0.063,131.85,131.83,26.0]
[1744837413220,0.063,131.89,131.85,18.64964886]
[1744837413409,0.063,131.89,131.88,26.0]
[1744837414308,1e-08,131.89,131.88,53.24303357]
[1744837414511,1e-08,131.89,131.88,27.547]
[1744837414931,1e-08,131.89,131.88,46.19664886]
[1744837415227,1e-08,131.89,131.88,73.74534995]
[1744837416127,1e-08,131.89,131.88,112.36104901]
[1744837416331,82.8,131.98,131.94,38.61569906]
[1744837416627,0.03,131.95,131.94,38.61569906]
[1744837416828,0.03,131.95,131.93,38.61569906]
[1744837417813,0.03,131.95,131.88,65.15327609]
[1744837417814,38.64569906,131.95,131.88,65.15327609]
[1744837418131,0.03,131.95,131.92,38.61569906]
[1744837418331,0.03,131.95,131.93,38.61569906]
[1744837418510,0.03,131.95,131.94,38.61569906]
[1744837419313,0.03,131.95,131.94,46.19490172]
[1744837419535,0.03,131.95,131.94,64.84455058]
[1744837419838,0.03,131.95,131.94,103.46024964]
[1744837420221,0.03,131.95,131.94,64.84455058]
[1744837422220,0.03,132.02,131.94,103.88673435]
[1744837422538,0.03,132.02,132.01,38.61569906]
[1744837422905,0.03,132.02,132.01,83.26534792]
[1744837423106,0.03,132.02,132.01,121.88104698]
[1744837423306,0.03,132.05,132.04,44.64964886]
[1744837423513,0.03,132.05,132.04,90.8388105]
[1744837423719,0.03,132.05,132.04,91.26529521]
[1744837424346,0.03,132.05,132.04,90.8388105]
[1744837424915,0.03,132.05,132.04,64.61569906]
[1744837425114,0.03,132.05,132.04,72.18916164]
[1744837425641,0.03,132.05,132.04,90.8388105]
[1744837427139,0.03,132.05,132.04,64.61569906]
[1744837427340,0.03,132.05,132.0,17.1]
[1744837427648,0.03,132.05,132.02,38.61569906]
[1744837429035,0.03,132.05,131.93,7.57977715]
[1744837429036,0.42648471,132.02,131.93,7.57977715]
[1744837429343,38.61569906,131.99,131.94,68.61569906]
[1744837429533,38.61569906,131.98,131.94,30.0]
[1744837429919,26.0,132.01,131.95,38.61569906]
[1744837430122,26.0,132.01,131.96,38.61569906]
[1744837430123,38.61569906,132.0,131.96,38.61569906]
[1744837430319,38.61569906,131.98,131.94,68.61569906]
[1744837430523,38.61569906,131.98,131.93,72.19547621]
[1744837431613,38.61569906,131.98,131.93,33.57977715]
[1744837431813,46.19271081,131.98,131.93,46.19547621]
[1744837432414,38.61569906,131.96,131.92,26.0]
[1744837432610,38.61569906,131.95,131.9,38.61569906]
[1744837432815,38.61569906,131.94,131.89,72.19777503]
[1744837433015,38.61569906,131.93,131.89,26.0]
[1744837433236,38.61569906,131.92,131.89,26.0]
[1744837434122,38.61569906,131.93,131.89,26.0]
[1744837434829,38.61569906,131.93,131.89,33.58195686]
[1744837435138,62.31749906,131.95,131.9,38.61569906]
[1744837435350,38.61569906,131.97,131.92,38.61569906]
[1744837435527,38.61569906,131.98,131.93,38.61569906]
[1744837436051,23.4445,131.99,131.96,38.61569906]
[1744837436217,38.61569906,132.01,131.97,38.61569906]
[1744837436423,38.61569906,132.02,131.97,38.61569906]
[1744837436929,38.61569906,132.02,131.97,46.19302598]
[1744837437132,62.06019906,132.03,131.98,38.61569906]
[1744837437337,23.4445,132.03,131.99,38.61569906]
[1744837437541,69.63432571,132.03,131.98,38.61569906]
[1744837437720,38.61569906,131.99,131.94,26.0]
[1744837437923,38.61569906,131.98,131.94,26.0]
[1744837438123,38.61569906,131.99,131.94,64.61569906]
[1744837438524,38.61569906,131.97,131.92,72.19586414]
[1744837438729,38.61569906,131.95,131.9,7.58150113]
[1744837438928,38.61569906,131.95,131.9,72.19720019]
[1744837439741,38.61569906,131.95,131.9,46.19720019]
[1744837440039,38.61569906,131.93,131.89,7.58189183]
[1744837440343,38.61569906,131.94,131.9,0.063]
[1744837441240,38.61569906,131.93,131.9,0.063]
[1744837441448,38.61569906,131.91,131.9,0.063]
[1744837442462,38.61569906,131.92,131.9,0.063]
[1744837442651,138.49569906,131.93,131.9,0.063]
[1744837443653,146.07552379,131.93,131.9,0.063]
[1744837443852,57.69183263,131.91,131.9,0.063]
[1744837444345,26.0,131.87,131.82,0.063]
[1744837444543,38.61569906,131.86,131.82,0.063]
[1744837445533,38.61569906,131.85,131.82,0.063]
[1744837445736,38.61569906,131.86,131.82,0.063]
[1744837446551,38.61569906,131.85,131.82,0.063]
[1744837447150,38.61569906,131.84,131.82,0.063]
[1744837447361,38.61569906,131.83,131.82,0.063]
[1744837447730,38.61569906,131.84,131.82,0.063]
[1744837448551,6.5783,131.86,131.82,38.67869906]
[1744837448744,55.69569906,131.88,131.83,38.61569906]
[1744837449055,17.08,131.88,131.85,38.61569906]
[1744837449255,82.8,131.89,131.85,38.61569906]
[1744837449756,38.61569906,131.88,131.83,38.61569906]
[1744837450545,38.61569906,131.88,131.84,7.58495145]
[1744837450947,38.61569906,131.88,131.84,46.20065051]
[1744837451146,37.61569906,131.88,131.84,46.20065051]
[1744837451654,37.61569906,131.88,131.84,7.58495145]
[1744837452243,82.8,131.89,131.84,7.58495145]
[1744837452444,38.61569906,131.88,131.84,7.58495145]
[1744837452746,121.41569906,131.89,131.84,38.61569906]
[1744837453264,82.8,131.89,131.84,38.61569906]
[1744837453563,44.64139906,131.9,131.85,38.61569906]
[1744837454244,38.61569906,131.89,131.85,38.61569906]
[1744837454752,38.61569906,131.86,131.82,7.64905568]
[1744837454946,6.0257,131.9,131.85,38.61569906]
[1744837455254,6.0257,131.9,131.86,38.61569906]
[1744837455962,19.09998471,131.92,131.85,26.0]
[1744837456166,82.8,131.98,131.91,64.61569906]
[1744837456351,82.8,131.98,131.95,38.61569906]
[1744837456548,6.2723,131.99,131.95,38.61569906]
[1744837456737,44.88799906,131.99,131.95,38.61569906]
[1744837457061,44.88799906,131.99,131.94,46.19454516]
[1744837457271,17.1,132.0,131.94,7.5788461]
[1744837457468,17.1,132.0,131.97,38.61569906]
[1744837457646,38.61569906,132.02,131.94,7.5788461]
[1744837457647,38.61569906,132.01,131.96,38.61569906]
[1744837458466,38.61569906,132.02,131.97,38.61569906]
[1744837458841,46.19046885,132.02,131.97,46.19278615]
[1744837459051,38.61569906,132.01,131.96,46.19356776]
[1744837460265,38.61569906,132.0,131.96,46.19356776]
[1744837460461,38.61569906,132.0,131.96,7.5778687]
[1744837460685,38.61569906,132.01,131.96,46.19356776]
[1744837461145,0.03,132.05,132.0,64.61569906]
[1744837461347,0.03,132.05,132.0,26.0]
[1744837461549,0.03,132.1,132.07,26.0]
[1744837461752,0.03,132.14,132.12,26.0]
[1744837462056,2.6618835,132.28,132.21,26.0]
[1744837462366,2.6618835,132.28,132.27,38.61569906]
[1744837462667,0.9952835,132.28,132.27,61.87314576]
[1744837462868,11.37566469,132.35,132.3,26.0]
[1744837462869,3.04246469,132.35,132.3,26.0]
[1744837463066,22.75132939,132.37,132.34,38.61569906]
[1744837463380,7.41321055,132.38,132.36,26.0]
[1744837463542,116.2377226,132.37,132.29,18.64]
[1744837463743,7.41321055,132.38,132.35,58.1188613]
[1744837463946,58.1188613,132.37,132.3,18.933972]
[1744837464173,1.0,132.4,132.31,0.42648471]
[1744837464383,1.0,132.36,132.31,0.42648471]
[1744837464549,1.0,132.35,132.31,0.42648471]
[1744837464744,0.8579,132.41,132.34,0.42648471]
[1744837464951,58.1188613,132.35,132.26,0.1421]
[1744837465253,0.8579,132.32,132.25,58.1188613]
[1744837465553,58.1188613,132.32,132.26,0.1421]
[1744837465752,19.32,132.34,132.25,58.2609613]
[1744837465977,19.35,132.34,132.25,0.1421]
[1744837466282,58.1188613,132.27,132.26,0.1421]
[1744837466442,58.1188613,132.27,132.19,0.1421]
[1744837466645,26.0,132.24,132.17,0.1421]
[1744837466862,58.1188613,132.21,132.16,7.70863099]
[1744837467065,58.1188613,132.21,132.12,23.23599474]
[1744837467066,58.1188613,132.17,132.12,20.1421]
[1744837467259,58.1188613,132.14,132.13,1.38391843]
[1744837467476,58.1188613,132.14,132.13,0.1421]
[1744837467763,58.1188613,132.18,132.14,0.1421]
[1744837467975,77.19499487,132.18,132.17,0.1421]
[1744837468274,77.19499487,132.18,132.16,0.1421]
[1744837468454,21.28,132.19,132.1,0.1421]
[1744837468455,116.2377226,132.17,132.1,0.1421]
[1744837468772,58.1188613,132.13,132.09,0.1421]
[1744837468983,58.1188613,132.16,132.1,0.1421]
[1744837469276,0.42648471,132.15,132.13,0.1421]
[1744837469480,26.0,132.16,132.11,0.1421]
[1744837469670,58.1188613,132.12,132.11,0.1421]
[1744837469877,8.167,132.2,132.14,0.1421]
[1744837470179,58.1188613,132.15,132.1,0.1421]
[1744837470372,58.1188613,132.15,132.0,38.87636276]
[1744837470373,58.1188613,132.12,132.11,0.1421]
[1744837470685,58.1188613,132.15,132.13,0.1421]
[1744837470852,58.1188613,132.15,132.06,18.64964886]
[1744837470853,58.1188613,132.14,132.07,0.1421]
[1744837471059,58.1188613,132.11,132.08,0.1421]
[1744837471394,22.02,132.13,132.05,0.1421]
[1744837471395,58.1188613,132.09,132.05,0.1421]
[1744837471573,0.42648471,132.12,132.05,0.1421]
[1744837471774,18.64964886,132.1,132.07,0.1421]
[1744837472083,22.02,132.11,132.07,0.1421]
[1744837472084,58.1188613,132.12,132.1,0.1421]
[1744837472274,80.1388613,132.13,132.1,0.1421]
[1744837472462,0.14216157,132.17,132.11,0.1421]
[1744837472668,22.02,132.19,132.14,0.1421]
[1744837472865,22.02,132.19,132.13,58.2609613]
[1744837473073,58.1188613,132.14,132.1,0.1421]
[1744837473277,58.1188613,132.11,132.1,0.1421]
[1744837474184,58.1188613,132.12,132.1,0.1421]